bitfinex/quotes_ETHUSD_20230405
["timestamp","ask_amount","ask_price","bid_price","bid_amount"]
[1680695949672,2.63428255,1913.8,1913.6,0.242]
[1680695949906,2.63428255,1913.8,1913.4,0.242]
[1680695950272,3.85279081,1913.8,1913.4,0.242]
[1680695951108,3.85279081,1913.8,1913.5,0.121]
[1680695951410,3.85279081,1913.8,1913.6,0.242]
[1680695951975,8.4638,1913.9,1913.6,0.242]
[1680695952175,11.09808255,1913.9,1913.5,0.13952471]
[1680695952376,7.96508255,1913.9,1913.7,0.242]
[1680695952613,0.79650826,1913.8,1913.6,0.242]
[1680695952817,7.96508255,1913.9,1913.6,0.242]
[1680695953672,5.3308,1913.9,1913.6,0.242]
[1680695967139,5.3228,1913.9,1913.6,0.242]
[1680695983224,9.742,1914.0,1913.6,0.242]
[1680695983459,9.74,1914.0,1913.6,0.242]
[1680695986053,5.17157332,1914.1,1913.6,2.8766856]
[1680695986230,5.16957332,1914.1,1913.7,1.36812103]
[1680695986436,5.16957332,1914.1,1913.7,1.61012103]
[1680695986636,5.16957332,1914.1,1913.8,0.4030121]
[1680695987050,5.16957332,1914.1,1913.9,0.242]
[1680695987234,5.16731711,1914.1,1913.9,0.242]
[1680695988263,5.16731711,1914.1,1913.7,0.248]
[1680695988424,5.16731711,1914.1,1913.7,0.242]
[1680695988625,5.16731711,1914.1,1913.7,0.52966856]
[1680695988859,5.16731711,1914.1,1913.8,0.242]
[1680695989954,5.16731711,1914.1,1913.9,0.126]
[1680695990531,6.16731711,1914.1,1913.9,0.126]
[1680695991477,1.0,1914.0,1913.9,0.126]
[1680695995155,5.16931711,1914.1,1913.9,0.126]
[1680695995462,5.16731711,1914.1,1913.9,0.126]
[1680695996065,5.16731711,1914.1,1913.9,0.368]
[1680695996267,5.16731711,1914.1,1913.9,0.126]
[1680696001593,6.22577882,1914.1,1913.9,0.126]
[1680696002250,6.22577882,1914.1,1913.9,0.368]
[1680696002451,6.22577882,1914.1,1913.9,0.126]
[1680696002846,6.22577882,1914.1,1913.9,0.368]
[1680696003078,5.16731711,1914.1,1913.9,0.126]
[1680696009376,5.16731711,1914.1,1913.8,0.242]
[1680696009593,5.16469545,1914.1,1913.8,0.242]
[1680696009990,5.16469545,1914.1,1913.8,1.333]
[1680696010192,5.16469545,1914.1,1913.9,1.2253]
[1680696010510,5.16469545,1914.1,1914.0,0.242]
[1680696034077,5.16170087,1914.1,1914.0,0.242]
[1680696040472,5.16170087,1914.1,1913.9,0.242]
[1680696041004,0.51617009,1914.0,1913.8,0.242]
[1680696041169,5.16370087,1914.1,1913.8,0.242]
[1680696041372,5.16170087,1914.1,1913.8,0.242]
[1680696045798,5.16170087,1914.1,1913.8,1.61012103]
[1680696046004,5.16170087,1914.1,1913.8,0.242]
[1680696046336,5.16170087,1914.1,1913.9,0.242]
[1680696046504,5.77860672,1914.1,1913.9,0.242]
[1680696046701,5.77860672,1914.1,1913.8,0.242]
[1680696046919,5.77860672,1914.1,1913.7,1.37412103]
[1680696046920,5.77860672,1914.1,1914.0,0.242]
[1680696047113,5.16170087,1914.1,1913.9,0.242]
[1680696047394,5.16170087,1914.1,1914.0,0.242]
[1680696047823,5.16170087,1914.1,1913.9,0.242]
[1680696048694,5.16170087,1914.1,1913.8,0.242]
[1680696049001,5.16170087,1914.1,1913.8,1.61012103]
[1680696049199,5.16170087,1914.1,1913.9,0.242]
[1680696049594,5.16170087,1914.1,1914.0,0.242]
[1680696050002,5.16170087,1914.1,1913.8,0.242]
[1680696050493,5.16170087,1914.1,1913.8,1.61012103]
[1680696050800,5.16170087,1914.1,1913.9,0.242]
[1680696051396,5.16170087,1914.1,1913.8,0.242]
[1680696051625,5.16170087,1914.1,1914.0,0.242]
[1680696051825,5.16170087,1914.1,1913.9,0.242]
[1680696052025,5.16170087,1914.1,1913.8,1.61012103]
[1680696052193,5.16170087,1914.1,1914.0,0.242]
[1680696052395,5.16170087,1914.1,1913.9,0.242]
[1680696052614,5.16170087,1914.1,1913.7,1.37412103]
[1680696052615,5.67860672,1914.1,1913.8,0.242]
[1680696052815,5.16170087,1914.1,1914.0,0.242]
[1680696053019,5.16170087,1914.1,1913.9,0.242]
[1680696053321,5.16170087,1914.1,1914.0,0.242]
[1680696053698,5.16170087,1914.1,1913.8,0.242]
[1680696054099,5.1582334,1914.1,1913.8,0.242]
[1680696054303,5.1582334,1914.1,1913.8,1.61012103]
[1680696054705,5.1582334,1914.1,1913.9,0.242]
[1680696055324,5.1582334,1914.1,1913.7,1.37412103]
[1680696055325,5.1582334,1914.1,1913.8,0.242]
[1680696055531,5.1582334,1914.1,1914.0,0.242]
[1680696055828,5.1582334,1914.1,1913.9,0.242]
[1680696056128,5.1582334,1914.1,1913.8,0.242]
[1680696056327,5.1582334,1914.1,1914.0,0.242]
[1680696056528,5.1582334,1914.1,1913.9,0.242]
[1680696056694,5.1582334,1914.1,1913.8,0.242]
[1680696056894,5.1582334,1914.1,1914.0,0.242]
[1680696057096,5.1582334,1914.1,1913.8,0.242]
[1680696057325,5.1582334,1914.1,1913.8,0.3794121]
[1680696057725,5.1582334,1914.1,1913.9,0.242]
[1680696058334,5.1582334,1914.1,1913.8,1.61012103]
[1680696058624,5.1582334,1914.1,1913.9,0.242]
[1680696059895,5.1582334,1914.1,1913.8,1.61012103]
[1680696060095,5.1582334,1914.1,1914.0,0.242]
[1680696060332,5.1582334,1914.1,1913.9,0.242]
[1680696060706,5.1582334,1914.1,1914.0,0.242]
[1680696063802,5.1582334,1914.1,1914.0,1.61012103]
[1680696064136,5.1582334,1914.1,1914.0,0.2635191]
[1680696064443,5.1582334,1914.1,1914.0,1.63164013]
[1680696064632,5.1582334,1914.1,1914.0,0.2635191]
[1680696064833,5.1582334,1914.1,1914.0,2.82030535]
[1680696065021,5.1582334,1914.1,1914.0,2.82630535]
[1680696066635,5.1582334,1914.1,1914.0,1.45818432]
[1680696066841,5.1582334,1914.1,1914.0,1.1865191]
[1680696067003,5.1582334,1914.1,1914.0,0.2635191]
[1680696073341,5.1582334,1914.1,1914.0,0.242]
[1680696076435,5.15539487,1914.1,1914.0,0.242]
[1680696081330,5.15539487,1914.1,1914.0,1.5057121]
[1680696082062,5.15539487,1914.1,1914.0,0.5877121]
[1680696089265,5.15539487,1914.1,1914.0,0.242]
[1680696091563,5.15539487,1914.1,1914.0,1.159]
[1680696091942,5.15539487,1914.1,1914.0,2.52712103]
[1680696092348,5.15539487,1914.1,1914.0,3.44512103]
[1680696093255,5.15539487,1914.1,1914.0,3.45112103]
[1680696094684,5.15539487,1914.1,1914.0,13.48802951]
[1680696094845,5.15539487,1914.1,1914.0,13.48402951]
[1680696095470,5.15539487,1914.1,1914.0,15.12105984]
[1680696095656,5.15539487,1914.1,1914.0,13.27305984]
[1680696096178,5.15539487,1914.1,1914.0,13.29457894]
[1680696096679,5.15539487,1914.1,1914.0,11.65754861]
[1680696096976,5.15539487,1914.1,1914.0,13.2945851]
[1680696099385,5.15539487,1914.1,1914.0,11.65754861]
[1680696099740,5.15539487,1914.1,1914.0,13.2945851]
[1680696099981,5.15240137,1914.1,1914.0,11.65754861]
[1680696102179,5.15240137,1914.1,1914.0,6.16654861]
[1680696102381,5.15240137,1914.1,1914.0,11.65754861]
[1680696109085,5.15775897,1914.1,1914.0,6.1585266]
[1680696109278,5.15775897,1914.1,1914.0,11.65154861]
[1680696109484,5.15775897,1914.1,1914.0,6.16054861]
[1680696109685,5.15775897,1914.1,1914.0,5.24254861]
[1680696112157,5.15775897,1914.1,1914.0,10.73354861]
[1680696112558,5.15775897,1914.1,1914.0,11.72954861]
[1680696112862,5.15775897,1914.1,1914.0,13.3645851]
[1680696113588,5.15775897,1914.1,1914.0,12.4485851]
[1680696113965,5.15775897,1914.1,1914.0,11.96454861]
[1680696115765,5.15775897,1914.1,1914.0,13.6015851]
[1680696116400,5.15775897,1914.1,1914.0,11.96454861]
[1680696118397,5.15775897,1914.1,1914.0,13.6015851]
[1680696118599,5.15240137,1914.1,1914.0,13.6075851]
[1680696122484,5.15240137,1914.1,1914.0,11.97054861]
[1680696122820,5.15240137,1914.1,1914.0,13.60569205]
[1680696123795,5.15240137,1914.1,1914.0,11.97054861]
[1680696124197,1.44338137,1914.1,1914.0,11.97054861]
[1680696124415,1.44338137,1914.1,1914.0,11.96454861]
[1680696126482,1.44338137,1914.1,1914.0,13.59967488]
[1680696128103,1.44338137,1914.1,1914.0,11.96454861]
[1680696135235,1.44338137,1914.1,1914.0,13.85796039]
[1680696137536,1.44338137,1914.1,1914.0,11.96454861]
[1680696140761,1.44338137,1914.1,1914.0,14.20114127]
[1680696141133,1.44338137,1914.1,1914.0,11.96454861]
[1680696141359,1.44338137,1914.1,1914.0,14.20114127]
[1680696141566,1.44338137,1914.1,1914.0,11.96454861]
[1680696141964,1.44338137,1914.1,1914.0,14.20114127]
[1680696144559,1.44078799,1914.1,1914.0,14.20114127]
[1680696145368,1.30836999,1914.1,1914.0,65.91081025]
[1680696146044,1.30836999,1914.1,1914.0,63.71081025]
[1680696146572,1.30836999,1914.1,1914.0,65.91081025]
[1680696151794,1.04986999,1914.1,1914.0,65.67081025]
[1680696151994,0.78506999,1914.1,1914.0,67.77381025]
[1680696152193,0.78506999,1914.1,1914.0,65.57381025]
[1680696152395,0.78506999,1914.1,1914.0,67.77381025]
[1680696152694,0.78506999,1914.1,1914.0,65.91981025]
[1680696153389,0.78506999,1914.1,1914.0,63.71981025]
[1680696153594,0.78506999,1914.1,1914.0,65.91981025]
[1680696155114,0.78506999,1914.1,1914.0,63.71981025]
[1680696156513,0.6527961,1914.1,1914.0,63.71981025]
[1680696157401,0.6527961,1914.1,1914.0,64.33992677]
[1680696157712,0.6527961,1914.1,1914.0,65.04557204]
[1680696158223,0.6527961,1914.1,1914.0,65.3067076]
[1680696159557,0.5044261,1914.1,1914.0,65.3067076]
[1680696160864,0.3768261,1914.1,1914.0,67.5067076]
[1680696167807,0.3768261,1914.1,1914.0,65.24894581]
[1680696169282,0.3768261,1914.1,1914.0,66.17194581]
[1680696169809,0.3768261,1914.1,1914.0,66.09194581]
[1680696171583,0.3768261,1914.1,1914.0,63.89194581]
[1680696172299,0.3768261,1914.1,1914.0,62.97294581]
[1680696173133,0.3768261,1914.1,1914.0,62.95142671]
[1680696173334,0.3768261,1914.1,1914.0,57.15150722]
[1680696175017,0.3768261,1914.1,1914.0,57.38150722]
[1680696175221,0.3768261,1914.1,1914.0,60.38150722]
[1680696175778,0.3768261,1914.1,1914.0,60.15150722]
[1680696175984,0.3768261,1914.1,1914.0,52.85083824]
[1680696176494,0.3768261,1914.1,1914.0,49.85083824]
[1680696178089,0.3768261,1914.1,1914.0,52.85083824]
[1680696180802,0.3768261,1914.1,1914.0,50.942]
[1680696185006,0.3768261,1914.1,1914.0,52.85128442]
[1680696185410,0.3768261,1914.1,1914.0,50.942]
[1680696185614,0.3768261,1914.1,1914.0,52.85128442]
[1680696185932,0.37391266,1914.1,1914.0,50.942]
[1680696186506,0.37391266,1914.1,1914.0,52.57836534]
[1680696187318,0.37391266,1914.1,1914.0,50.942]
[1680696187906,0.37391266,1914.1,1914.0,52.57822353]
[1680696188102,0.37391266,1914.1,1914.0,50.942]
[1680696192103,0.37391266,1914.1,1914.0,56.433]
[1680696192310,0.37391266,1914.1,1914.0,56.439]
[1680696195111,0.37391266,1914.1,1914.0,56.70013556]
[1680696196044,0.37391266,1914.1,1914.0,57.61713556]
[1680696196223,0.37391266,1914.1,1914.0,60.08372822]
[1680696198243,0.37391266,1914.1,1914.0,61.8933972]
[1680696198451,0.37391266,1914.1,1914.0,60.9763972]
[1680696204159,9.7721576,1914.5,1914.0,60.9703972]
[1680696204449,9.7721576,1914.5,1914.4,1.63452686]
[1680696204450,9.7701576,1914.5,1914.4,1.63452686]
[1680696204640,0.0053576,1914.5,1914.4,1.63452686]
[1680696204812,0.0053576,1914.5,1914.4,4.87452686]
[1680696205015,0.0053576,1914.5,1914.4,1.87452686]
[1680696205436,1.03835761,1914.7,1914.4,1.87452686]
[1680696205624,1.03835761,1914.7,1914.6,1.36204349]
[1680696205954,1.03835761,1914.7,1914.6,1.60204349]
[1680696219367,0.11535761,1914.7,1914.6,1.60204349]
[1680696224433,0.53635761,1914.8,1914.6,1.60404349]
[1680696224633,6.28150001,1914.9,1914.6,1.60204349]
[1680696224852,6.27950001,1914.9,1914.7,0.24]
[1680696225435,6.27950001,1914.9,1914.7,3.24]
[1680696225655,6.28550001,1914.9,1914.7,3.24]
[1680696225973,6.28550001,1914.9,1914.8,0.24]
[1680696226131,1.03900001,1914.9,1914.8,0.24]
[1680696226333,0.53300001,1914.9,1914.8,0.24]
[1680696228377,0.48300001,1914.9,1914.8,0.24]
[1680696228763,0.09300002,1915.0,1914.8,0.24]
[1680696228935,0.917,1914.9,1914.8,0.24]
[1680696231870,0.417,1914.9,1914.8,0.24]
[1680696234078,0.81600002,1915.0,1914.8,0.24]
[1680696236794,0.917,1914.9,1914.8,0.24]
[1680696238182,0.917,1914.9,1914.8,1.60204349]
[1680696239485,1.02700001,1915.1,1914.8,1.60204349]
[1680696239785,1.76618001,1915.1,1914.9,0.24]
[1680696239962,1.76618001,1915.1,1914.9,0.235]
[1680696240148,1.76618001,1915.1,1914.9,0.24]
[1680696242479,1.76618001,1915.1,1914.9,0.19]
[1680696242673,1.76618001,1915.1,1914.9,0.24]
[1680696242882,1.02700001,1915.1,1914.9,0.23654171]
[1680696243097,1.02700001,1915.1,1914.9,0.24]
[1680696243460,1.02700001,1915.1,1914.9,0.212]
[1680696245357,0.917,1915.0,1914.7,4.57604349]
[1680696245562,0.923,1914.8,1914.6,1.58204349]
[1680696245762,0.923,1914.8,1914.6,1.57404349]
[1680696245957,0.923,1914.8,1914.6,1.36204349]
[1680696246157,0.923,1914.8,1914.7,0.212]
[1680696246776,0.923,1914.9,1914.7,1.57404349]
[1680696247157,0.923,1914.9,1914.7,1.36204349]
[1680696247358,0.923,1914.9,1914.7,0.212]
[1680696247561,0.923,1914.9,1914.7,1.57404349]
[1680696250494,0.923,1914.9,1914.7,0.212]
[1680696250693,1.05342283,1914.9,1914.7,0.212]
[1680696251697,1.05342283,1914.9,1914.7,1.57404349]
[1680696251898,1.05342283,1914.9,1914.7,0.212]
[1680696252495,1.05342283,1914.9,1914.7,1.57404349]
[1680696252701,1.05342283,1914.9,1914.7,0.212]
[1680696253203,1.05342283,1914.9,1914.7,1.57404349]
[1680696253412,1.05342283,1914.9,1914.7,0.212]
[1680696254768,0.10534228,1914.8,1914.6,4.57404349]
[1680696254965,0.10534228,1914.8,1914.6,1.57404349]
[1680696256281,1.05342283,1914.9,1914.6,1.57404349]
[1680696258172,0.917,1914.8,1914.6,1.57404349]
[1680696259576,1.04742283,1914.9,1914.6,1.57404349]
[1680696260927,1.04742283,1914.9,1914.6,1.36204349]
[1680696261126,0.10474228,1914.8,1914.6,1.36204349]
[1680696263133,0.10474228,1914.8,1914.6,0.212]
[1680696263295,0.10474228,1914.8,1914.5,4.61404349]
[1680696263827,1.02574228,1914.8,1914.5,4.61404349]
[1680696264330,2.63428255,1914.7,1914.5,4.61404349]
[1680696264498,0.26342826,1914.6,1914.5,0.04]
[1680696265725,0.2631558,1914.6,1914.5,0.04]
[1680696265895,0.2611558,1914.6,1914.5,0.04]
[1680696273614,5.19934228,1914.8,1914.5,0.041]
[1680696273811,7.83162483,1914.8,1914.5,0.041]
[1680696277917,7.83162483,1914.8,1914.5,0.253]
[1680696278731,5.19734228,1914.8,1914.5,0.041]
[1680696278979,0.008,1914.9,1914.5,0.253]
[1680696279250,6.5057,1915.0,1914.5,0.253]
[1680696279410,8.96157,1915.0,1914.5,0.253]
[1680696279815,0.917,1914.9,1914.5,0.253]
[1680696280015,8.04657,1915.0,1914.5,0.041]
[1680696280229,3.63428255,1914.9,1914.5,0.041]
[1680696280420,0.36342826,1914.8,1914.5,0.041]
[1680696282544,2.99771081,1914.8,1914.5,0.041]
[1680696283527,8.37731081,1914.8,1914.5,0.041]
[1680696284832,1.0,1914.6,1914.5,0.041]
[1680696287147,0.99681574,1914.6,1914.5,0.041]
[1680696287324,1.46012557,1914.6,1914.5,0.041]
[1680696293126,0.46330983,1914.6,1914.5,0.03837157]
[1680696297141,2.63428255,1914.7,1914.5,0.03837157]
[1680696297777,15.2042,1914.8,1914.5,0.03837157]
[1680696298077,17.83648255,1914.8,1914.5,0.03837157]
[1680696298275,8.01988255,1914.8,1914.5,0.03837157]
[1680696299880,5.3796,1914.8,1914.5,0.03837157]
[1680696300059,5.3856,1914.8,1914.5,0.15786019]
[1680696300260,0.006,1914.8,1914.5,0.36986019]
[1680696300452,10.5263,1915.1,1914.6,0.212]
[1680696300660,2.63428255,1915.0,1914.6,0.212]
[1680696300845,2.64028255,1915.0,1914.6,0.212]
[1680696304381,10.5283,1915.1,1914.7,0.923]
[1680696304686,10.5283,1915.1,1914.7,0.038]
[1680696304687,2.63428255,1915.0,1914.7,0.038]
[1680696305450,2.63428255,1915.0,1914.7,0.25]
[1680696305663,2.63428255,1915.0,1914.7,0.038]
[1680696306666,5.76728255,1915.0,1914.7,0.038]
[1680696306872,1.57256254,1914.9,1914.7,0.038]
[1680696307190,4.20684509,1914.9,1914.7,0.038]
[1680696307390,2.63428255,1914.8,1914.7,0.038]
[1680696307808,2.63428255,1914.8,1914.5,0.218]
[1680696307969,2.63428255,1914.8,1914.7,0.037]
[1680696308160,6.50146706,1914.8,1914.7,0.037]
[1680696312695,6.68424706,1914.8,1914.7,0.037]
[1680696312902,7.68424706,1914.8,1914.7,0.037]
[1680696313663,13.17524706,1914.8,1914.7,0.037]
[1680696314299,13.18124706,1914.8,1914.7,0.037]
[1680696314793,14.09824706,1914.8,1914.7,0.037]
[1680696315106,13.09224706,1914.8,1914.7,0.03305486]
[1680696315292,13.32224706,1914.8,1914.3,29.938]
[1680696315600,3.133,1914.6,1914.3,0.008]
[1680696315898,2.63428255,1914.5,1914.2,3.218]
[1680696316096,3.21101081,1914.5,1914.2,0.218]
[1680696316297,3.21101081,1914.5,1914.3,0.212]
[1680696316531,3.21101081,1914.5,1914.3,0.218]
[1680696316876,3.21101081,1914.5,1914.3,0.212]
[1680696317075,3.21101081,1914.5,1914.2,0.218]
[1680696319976,0.32110108,1914.4,1914.2,0.218]
[1680696320403,3.21101081,1914.5,1914.2,0.218]
[1680696321198,6.34401081,1914.5,1914.2,0.218]
[1680696321972,6.34401081,1914.5,1914.3,0.212]
[1680696322189,6.34401081,1914.5,1914.2,0.218]
[1680696325909,6.34401081,1914.5,1914.2,0.212]
[1680696332480,7.34401081,1914.5,1914.1,0.212]
[1680696332684,3.86740108,1914.4,1914.1,0.212]
[1680696332883,2.63428255,1914.3,1914.1,0.212]
[1680696333415,0.28394814,1914.2,1914.1,0.212]
[1680696337909,6.05123069,1914.2,1914.0,3.218]
[1680696338220,3.23940562,1914.1,1914.0,0.006]
[1680696338430,3.23940562,1914.1,1913.9,0.218]
[1680696339200,3.23940562,1914.1,1913.9,0.212]
[1680696339590,3.23940562,1914.1,1913.9,0.218]
[1680696339824,0.32394056,1914.0,1913.9,0.212]
[1680696340326,3.23940562,1914.1,1913.9,0.212]
[1680696340496,3.23940562,1914.1,1913.8,3.218]
[1680696341092,3.23940562,1914.1,1913.9,0.212]
[1680696341495,3.23940562,1914.1,1913.8,3.218]
[1680696341917,0.32394056,1914.0,1913.8,0.218]
[1680696342103,0.32394056,1914.0,1913.7,0.212]
[1680696342421,0.32394056,1914.0,1913.6,0.218]
[1680696343007,2.95822311,1914.0,1913.6,0.218]
[1680696343202,0.29582231,1913.9,1913.6,0.218]
[1680696343414,3.93010486,1913.9,1913.5,0.008]
[1680696343630,2.93010486,1913.9,1913.5,0.212]
[1680696343798,8.278,1914.0,1913.5,1.129]
[1680696343996,7.77728255,1914.0,1913.6,0.917]
[1680696344334,8.92962311,1914.0,1913.6,0.917]
[1680696346556,0.99687389,1913.8,1913.5,0.008]
[1680696346732,0.99687389,1913.8,1913.4,0.212]
[1680696346898,1.37827653,1913.8,1913.3,1.135]
[1680696347104,1.37827653,1913.8,1913.4,0.212]
[1680696347301,4.01255908,1913.8,1913.4,0.212]
[1680696347519,0.40125591,1913.7,1913.4,0.212]
[1680696347707,4.01255908,1913.8,1913.4,0.212]
[1680696347914,9.35815908,1913.8,1913.4,0.212]
[1680696349639,9.54103908,1913.8,1913.4,0.212]
[1680696350234,9.54103908,1913.8,1913.3,3.218]
[1680696350235,2.63428255,1913.7,1913.3,3.218]
[1680696350417,1.0,1913.6,1913.3,0.006]
[1680696350734,1.1829,1913.6,1913.2,3.63582]
[1680696351234,0.1829,1913.6,1913.2,3.63582]
[1680696351399,0.1829,1913.6,1913.2,0.63582]
[1680696352139,0.18291,1913.5,1913.2,1.135]
[1680696352306,0.59660665,1913.6,1913.2,1.135]
[1680696352507,0.18291,1913.5,1913.2,1.135]
[1680696352734,0.59660665,1913.6,1913.2,1.135]
[1680696353407,0.18291,1913.5,1913.2,1.135]
[1680696354432,0.26800095,1913.4,1913.2,1.135]
[1680696355802,0.26800095,1913.4,1913.2,1.035]
[1680696356338,0.26800095,1913.4,1913.2,1.129]
[1680696359404,0.26800095,1913.4,1913.2,1.081]
[1680696365852,0.26800095,1913.4,1913.2,0.164]
[1680696366464,0.26800095,1913.4,1913.2,0.16065442]
[1680696366623,0.26800095,1913.4,1913.2,0.164]
[1680696375576,0.26800095,1913.4,1913.2,1.087]
[1680696375779,0.26800095,1913.4,1913.2,1.72380435]
[1680696375939,0.26800095,1913.4,1913.3,0.164]
[1680696384345,0.26800095,1913.4,1913.3,1.52604349]
[1680696386850,0.26800095,1913.4,1913.3,4.087]
[1680696387456,0.26800095,1913.4,1913.3,5.72152686]
[1680696387654,0.26800095,1913.4,1913.3,5.72352686]
[1680696387851,0.26800095,1913.4,1913.3,6.29587955]
[1680696389685,0.26800095,1913.4,1913.3,5.72352686]
[1680696389889,0.26800095,1913.4,1913.3,4.80052686]
[1680696390065,0.26800095,1913.4,1913.3,4.79852686]
[1680696391286,0.26449531,1913.4,1913.3,4.79852686]
[1680696392177,0.26449531,1913.4,1913.3,5.71652686]
[1680696392377,8.4866,1913.8,1913.3,5.71852686]
[1680696392573,0.84866,1913.7,1913.5,1.36506091]
[1680696392821,0.85466,1913.7,1913.5,1.36506091]
[1680696393323,0.85466,1913.7,1913.5,1.52906091]
[1680696393517,0.24438316,1913.6,1913.5,1.52906091]
[1680696393871,0.24438316,1913.6,1913.5,1.47606091]
[1680696395916,0.24438316,1913.6,1913.5,1.42606091]
[1680696396309,11.12088255,1913.8,1913.5,1.42606091]
[1680696396501,12.23097081,1913.8,1913.5,1.42606091]
[1680696399520,0.24473624,1913.7,1913.5,1.42606091]
[1680696401111,0.19473624,1913.7,1913.5,1.42606091]
[1680696401320,0.24438316,1913.7,1913.5,1.42606091]
[1680696406716,0.24438316,1913.7,1913.5,0.164]
[1680696406932,1.49131856,1913.7,1913.5,1.42606091]
[1680696413918,1.49131856,1913.7,1913.5,1.26206091]
[1680696414113,1.49131856,1913.7,1913.4,4.43406091]
[1680696414318,1.49131856,1913.7,1913.4,4.43206091]
[1680696420550,4.12560111,1913.7,1913.4,4.43206091]
[1680696420748,0.41256011,1913.6,1913.4,1.43206091]
[1680696421668,3.04684266,1913.6,1913.4,1.43206091]
[1680696422646,3.04390502,1913.6,1913.4,1.42806091]
[1680696422810,3.04390502,1913.6,1913.4,1.42606091]
[1680696423014,0.3043905,1913.5,1913.4,1.42606091]
[1680696427920,0.008,1913.7,1913.4,1.42606091]
[1680696428255,5.3516,1913.8,1913.5,1.26206091]
[1680696428418,7.98588255,1913.8,1913.5,1.26206091]
[1680696428619,9.09797081,1913.8,1913.5,1.26206091]
[1680696429549,0.23830839,1913.7,1913.5,1.26206091]
[1680696433645,0.23830839,1913.7,1913.6,1.26206091]
[1680696440569,0.23830839,1913.7,1913.6,0.917]
[1680696440867,0.23830839,1913.7,1913.6,1.10252359]
[1680696441064,0.23830839,1913.7,1913.6,1.67642864]
[1680696441833,0.23830839,1913.7,1913.6,3.5409555]
[1680696442034,0.23830839,1913.7,1913.6,5.82942864]
[1680696442353,0.23830839,1913.7,1913.6,5.83142864]
[1680696442552,10.258,1914.3,1913.6,5.83142864]
[1680696442755,10.256,1914.3,1913.9,0.923]
[1680696443347,0.25539227,1914.2,1913.9,0.923]
[1680696444039,0.25201545,1914.2,1913.9,0.923]
[1680696444533,0.25201545,1914.2,1913.8,1.093]
[1680696444738,1.43485545,1914.2,1913.8,1.093]
[1680696444959,1.43485545,1914.2,1913.9,0.162]
[1680696444960,1.25201545,1914.2,1913.9,0.162]
[1680696445159,1.43486545,1914.2,1913.9,0.162]
[1680696445336,0.18285,1914.1,1913.9,0.162]
[1680696445536,3.886298,1914.2,1913.8,0.17]
[1680696445739,0.3886298,1914.1,1913.8,0.17]
[1680696446067,3.886298,1914.2,1913.8,0.17]
[1680696446457,3.63428255,1914.2,1913.8,0.17]
[1680696447973,5.76728255,1914.1,1913.8,0.17]
[1680696448577,5.76728255,1914.1,1913.7,0.17]
[1680696452375,0.25020219,1914.0,1913.7,0.17]
[1680696452567,2.88448474,1914.0,1913.7,0.17]
[1680696454649,3.49243321,1914.0,1913.7,0.164]
[1680696459393,2.89048474,1914.0,1913.7,0.164]
[1680696463667,0.25620219,1914.0,1913.7,0.164]
[1680696463999,0.25020219,1914.0,1913.7,0.164]
[1680696468571,0.25020219,1914.0,1913.7,1.081]
[1680696468781,0.25020219,1914.0,1913.7,4.081]
[1680696468984,0.25020219,1914.0,1913.8,0.164]
[1680696470904,0.25020219,1914.0,1913.8,1.081]
[1680696471114,0.25020219,1914.0,1913.8,1.2808]
[1680696471275,0.25020219,1914.0,1913.9,0.162]
[1680696472410,0.006,1914.2,1913.9,0.162]
[1680696473414,0.24785133,1914.1,1913.9,0.162]
[1680696475375,0.19785133,1914.1,1913.9,0.162]
[1680696475575,0.19785133,1914.1,1913.9,0.2699]
[1680696476004,0.19785133,1914.1,1914.0,0.162]
[1680696476406,15.7325,1914.3,1914.0,0.162]
[1680696476975,15.7325,1914.3,1913.9,0.162]
[1680696477488,0.24582082,1914.2,1913.9,0.162]
[1680696482081,0.24582082,1914.2,1913.9,1.08]
[1680696482395,0.24582082,1914.2,1914.0,1.085]
[1680696484221,0.24582082,1914.2,1914.1,0.162]
[1680696485601,5.2673,1914.5,1914.1,0.162]
[1680696485825,5.2653,1914.5,1914.1,0.162]
[1680696486531,0.18905909,1914.4,1914.1,0.18351796]
[1680696486708,0.18905909,1914.4,1914.1,0.29416976]
[1680696487099,0.18905909,1914.4,1914.2,0.162]
[1680696488605,0.18905909,1914.4,1914.1,0.18351796]
[1680696493499,0.733895,1914.4,1914.1,0.162]
[1680696493703,1.733895,1914.4,1914.1,0.162]
[1680696493936,1.733895,1914.4,1914.2,0.162]
[1680696494240,1.18905909,1914.4,1914.0,0.162]
[1680696496433,1.18574746,1914.4,1914.0,0.164]
[1680696496640,1.18574746,1914.4,1914.0,0.162]
[1680696498230,0.11857475,1914.3,1914.0,0.162]
[1680696498548,0.11857475,1914.3,1913.8,0.002]
[1680696498549,2.63428255,1914.2,1913.8,0.164]
[1680696498706,1.0,1914.1,1913.8,0.16962089]
[1680696498907,1.26342826,1914.1,1913.8,0.164]
[1680696499109,1.26342826,1914.1,1913.7,1.37053065]
[1680696499838,1.26342826,1914.1,1913.6,1.55605424]
[1680696500331,1.26342826,1914.1,1913.7,0.164]
[1680696500929,0.12634283,1914.0,1913.7,0.164]
[1680696501136,1.26342826,1914.1,1913.7,0.164]
[1680696501451,3.89771081,1914.1,1913.7,0.164]
[1680696503513,3.89771081,1914.1,1913.7,0.16962089]
[1680696504525,0.19498417,1914.0,1913.7,0.16962089]
[1680696505345,0.19498417,1914.0,1913.7,0.164]
[1680696505717,0.19498417,1914.0,1913.7,0.16962089]
[1680696508652,0.60425367,1914.0,1913.7,0.164]
[1680696510128,0.60425367,1914.0,1913.7,0.16962089]
[1680696512623,0.19498417,1914.0,1913.7,0.16962089]
[1680696512824,0.19498417,1914.0,1913.7,0.164]
[1680696515569,0.19498417,1914.0,1913.7,1.081]
[1680696515863,0.19498417,1914.0,1913.8,0.164]
[1680696517464,8.6726,1914.2,1913.8,0.164]
[1680696517635,13.14493002,1914.2,1913.8,0.164]
[1680696519362,0.18317668,1914.1,1913.8,0.164]
[1680696520432,1.18317668,1914.1,1913.8,0.164]
[1680696520937,0.18317668,1914.1,1913.8,0.164]